[Event "FRA-ch Teams Top 16-A 2022"]
[Site "Chartres"]
[Date "2022.06.15"]
[Round "7.19"]
[White "Postny, Evgeny"]
[Black "Bauer, Christian"]
[Result "1-0"]
[ECO "A86"]
[WhiteElo "2563"]
[BlackElo "2596"]
[Annotator "TA"]
[PlyCount "219"]
[EventDate "2022.06.09"]
[EventType "team-tourn"]
[EventCountry "FRA"]
[SourceTitle "playchess.com"]
[Source "ChessBase"]
[SourceQuality "1"]
[TimeControl "40/5400+30:1800+30"]

{[%evp 53,219,56,59,64,64,79,71,52,65,65,94,72,73,66,133,99,101,61,83,20,31,33,18,4,8,0,0,0,45,45,45,45,45,45,45,45,45,45,54,39,129,72,72,72,72,72,94,79,72,72,83,72,72,72,72,72,72,72,115,72,72,72,72,72,72,0,72,56,116,116,116,0,56,56,116,116,116,116,116,116,116,116,116,116,116,116,116,116,116,116,116,116,116,116,116,116,116,116,116,116,116,116,116,116,116,116,116,76,116,116,116,80,116,116,116,116,116,116,116,116,116,116,116,116,116,116,116,116,116,116,116,116,116,80,116,0,116,0,116,0,116,0,116,116,116,0,116,94,94,76,123,123,336,314,370,362,355,355,6985,6978,6953,6791,6442,6427,6212,6183,5431,4735]} 1. d4 {[%emt 0:00:04]} f5 {[%emt 0:00:08]} 2. g3 {[%emt 0:00:15]} Nf6 {[%emt 0:00:08]} 3. Bg2 {[%emt 0:00:09]} g6 {[%emt 0:00:25]} 4. c4 {[%emt 0:00:08]} Bg7 {[%emt 0:00:07]} 5. Nh3 {[%emt 0:04:25]} Nc6 {[%emt 0:04:13]} 6. O-O {[%emt 0:01:56]} O-O {[%emt 0:00:51]} 7. Nc3 {[%emt 0:03:19]} d6 {[%emt 0:08:30]} 8. d5 {[%emt 0:01:51]} Ne5 {[%emt 0:05:43]} 9. b3 {[%emt 0:00:15]} Nh5 {[%emt 0:10:07]} 10. Bd2 {[%emt 0:10:53]} a6 {[%emt 0:00:44]} 11. a4 {[%emt 0:01:39]} h6 {[%emt 0:03:33]} 12. e3 {[%emt 0:02:51]} Nf6 {[%emt 0:07:40]} 13. Nf4 {[%emt 0:05:11]} c6 {[%emt 0:04:02]} 14. Qc2 {[%emt 0:01:53]} cxd5 {[%emt 0:02:51]} 15. Nfxd5 {[%emt 0:05:10]} Nh7 {[%emt 0:08:04]} 16. a5 {[%emt 0:03:35]} Rb8 {[%emt 0:00:05]} 17. Rad1 {[%emt 0:03:44]} Bd7 {[%emt 0:01:33]} 18. Ne2 {[%emt 0:03:15]} Qe8 {[%emt 0:05:27]} 19. Nd4 {[%emt 0:04:13]} Nf6 {[%emt 0:06:52]} 20. Nxf6+ {[%emt 0:13:23]} Bxf6 {[%emt 0:01:43]} 21. Bc3 {[%emt 0:00:12]} Bg7 {[%emt 0:02:22]} 22. Bd5+ {[%emt 0:02:50]} Kh7 {[%emt 0:00:37]} 23. Ne6 {[%emt 0:03:24]} Bxe6 {[%emt 0:01:38]} 24. Bxe6 {[%emt 0:00:14]} Nf3+ {[%emt 0:04:25]} 25. Kg2 {[%emt 0:07:11]} Bxc3 {[%emt 0:02:49]} 26. Qxc3 {[%emt 0:00:06]} Ng5 {[%emt 0:01:00]} 27. Bd5 {[%emt 0:01:10]} e6 {[%emt 0:00:17]} 28. h4 {[%emt 0:00:32]} Nf7 $1 {[%emt 0:00:17]} 29. Bf3 {[%emt 0:00:09]} Qe7 {[%emt 0:07:15]} 30. Kg1 {[%emt 0:04:40]} Qc7 {[%emt 0:02:41]} 31. Bg2 {[%emt 0:03:09]} Qe7 {[%emt 0:00:56]} 32. Rd2 {[%emt 0:01:03]} Rfc8 {[%emt 0:01:42]} 33. Rfd1 {[%emt 0:00:41]} b6 {[%emt 0:00:32]} (33... Rc7 $14) 34. axb6 {[%emt 0:01:50]} Rxb6 {[%emt 0:00:01]} 35. Ra2 {[%emt 0:01:36]} Rcb8 {[%emt 0:03:11]} 36. Ra3 {[%emt 0:00:18]} (36. Qa1 $16) 36... g5 $11 {[%emt 0:02:09]} 37. hxg5 {[%emt 0:01:00]} hxg5 {[%emt 0:00:01]} 38. Rda1 {[%emt 0:01:27]} Kg6 {[%emt 0:01:13]} 39. Qc2 {[%emt 0:05:55]} Qf6 {[%emt 0:00:53]} 40. e4 {[%emt 0:01:22]} Kg7 {[%emt 0:03:08]} (40... Rxb3 $5 41. exf5+ (41. Rxa6 Rb2 $11) 41... exf5 $11) 41. exf5 {[%emt 0:31:32]} (41. Rxa6 f4 42. gxf4 gxf4 $17) 41... Rxb3 {[%emt 0:05:30]} 42. fxe6 {[%emt 0:00:00]} Rxa3 {[%emt 0:15:32]} 43. Rxa3 {[%emt 0:00:00]} Rb2 $1 {[%emt 0:01:27]} 44. Qc3 {[%emt 0:00:00]} Rb1+ {[%emt 0:00:34]} 45. Bf1 {[%emt 0:00:00]} Ne5 {[%emt 0:00:48]} 46. Qc2 {[%emt 0:00:00]} Rb6 {[%emt 0:01:26]} (46... Re1 $14) 47. c5 {[%emt 0:00:00]} ({White should try} 47. Bg2) 47... dxc5 $16 {[%emt 0:00:29]} 48. Qxc5 {[%emt 0:00:00]} ({Much worse is} 48. Bxa6 Nf3+ 49. Rxf3 Qxf3 $11) (48. Rxa6 $2 Rxa6 49. Qxc5 (49. Bxa6 $2 Nf3+ 50. Kf1 Qa1+ 51. Ke2 Nd4+ 52. Kd2 Nxc2 $19) 49... Nf3+ 50. Kg2 Rxe6 $19) 48... Rxe6 {[%emt 0:01:41]} 49. Be2 {[%emt 0:01:27]} Nd7 {[%emt 0:04:02]} 50. Qc4 {[%emt 0:01:39]} Ne5 {[%emt 0:01:33]} 51. Qd5 {[%emt 0:00:33]} Rd6 {[%emt 0:01:05]} 52. Qe4 {[%emt 0:00:41]} Nf7 {[%emt 0:01:06]} 53. Ra5 {[%emt 0:01:51]} Qc3 {[%emt 0:00:39]} 54. Rf5 $1 {[%emt 0:01:50]} Rf6 {[%emt 0:00:23]} 55. Rxf6 {[%emt 0:00:18]} (55. Bh5 {with more complications.} Rxf5 56. Qxf5 Qa1+ 57. Kg2) 55... Qxf6 {[%emt 0:00:09]} 56. Qa4 {[%emt 0:00:47]} (56. Qa8 {looks sharper.} Qd4 57. Bxa6 Ne5 58. Bb7) 56... Ne5 {[%emt 0:00:13]} 57. Bxa6 {[%emt 0:00:41]} Qc6 {[%emt 0:01:29]} 58. Qa1 {[%emt 0:00:33]} Qf6 {[%emt 0:00:03]} 59. Qa4 {[%emt 0:00:22]} Qc6 $1 {[%emt 0:00:08]} 60. Qd4 {[%emt 0:00:36]} Qf6 {[%emt 0:00:03] [#]} (60... Qxa6 $14 61. Qxe5+ Kg6) 61. Qa7+ $1 $16 {[%emt 0:00:12]} Qf7 {[%emt 0:00:06]} 62. Qd4 {[%emt 0:00:41]} (62. Bb7 $16) 62... Qf6 $14 {[%emt 0:00:01]} 63. Qe4 {[%emt 0:00:34]} g4 {[%emt 0:02:39]} ({Black should play} 63... Qxa6 $14 64. Qxe5+ Kg6) 64. Be2 {[%emt 0:00:14]} Qg5 {[%emt 0:00:01]} 65. Kg2 {[%emt 0:00:26]} Kf6 {[%emt 0:00:06]} 66. Qb4 {[%emt 0:00:26]} Qf5 {[%emt 0:00:27] [#]} 67. Qd6+ $1 {[%emt 0:00:26]} Qe6 {[%emt 0:00:31]} 68. Qd8+ {[%emt 0:00:42]} Qe7 {[%emt 0:00:54]} 69. Qh8+ {[%emt 0:00:23]} Qg7 {[%emt 0:00:07]} 70. Qc8 {[%emt 0:00:13]} Qg6 {[%emt 0:01:21]} 71. Qf8+ {[%emt 0:00:23]} Qf7 {[%emt 0:00:08]} 72. Qh6+ {[%emt 0:00:40]} Qg6 {[%emt 0:00:06]} 73. Qe3 {[%emt 0:00:22]} Qf5 {[%emt 0:01:02]} 74. Qd4 {[%emt 0:00:50]} Qe6 {[%emt 0:00:45]} 75. Bb5 {[%emt 0:00:42]} Ke7 {[%emt 0:00:47]} 76. Qb4+ {[%emt 0:00:30]} Kf6 {[%emt 0:00:29]} 77. Qc5 {[%emt 0:00:46]} Qe7 {[%emt 0:00:19]} 78. Qd5 {[%emt 0:00:19]} Qe6 {[%emt 0:00:04]} 79. Qe4 {[%emt 0:00:16]} Qf5 {[%emt 0:00:08]} 80. Qd4 {[%emt 0:00:20]} Qe6 {[%emt 0:00:50]} 81. Bd3 {[%emt 0:00:22]} Ke7 {[%emt 0:00:26]} 82. Be4 {[%emt 0:00:36]} Qd6 {[%emt 0:00:46]} 83. Qe3 {[%emt 0:00:10]} Qe6 {[%emt 0:00:22]} 84. Qg5+ {[%emt 0:00:29]} Qf6 {[%emt 0:00:12]} 85. Qg8 {[%emt 0:00:08]} Qf7 {[%emt 0:00:24]} 86. Qb8 {[%emt 0:00:21]} Kf6 {[%emt 0:00:31]} 87. Qd6+ {[%emt 0:00:24]} Qe6 {[%emt 0:00:10]} 88. Qf8+ {[%emt 0:00:21]} Qf7 {[%emt 0:00:13]} 89. Qh8+ {[%emt 0:00:16]} Qg7 {[%emt 0:00:10]} 90. Qh5 {[%emt 0:00:36]} Ke7 {[%emt 0:00:35]} 91. Qf5 {[%emt 0:00:52]} Qf6 {[%emt 0:00:30]} 92. Qc8 {[%emt 0:00:07]} Qe6 {[%emt 0:00:22]} 93. Qc3 {[%emt 0:00:15]} ({Resist} 93. Qc5+ Qd6 94. Qc8 Qd4 $18) 93... Kf6 {[%emt 0:00:53]} 94. Qe3 {[%emt 0:00:10]} Ke7 $1 {[%emt 0:00:11]} 95. Qg5+ {[%emt 0:00:29]} Qf6 {[%emt 0:00:17]} 96. Qg8 {[%emt 0:00:08]} Qf7 $1 {[%emt 0:00:20]} 97. Qb8 {[%emt 0:00:13]} Kf6 $1 {[%emt 0:00:29]} 98. Qd8+ {[%emt 0:00:12]} Qe7 {[%emt 0:00:12]} 99. Qh8+ {[%emt 0:00:09]} Qg7 $1 {[%emt 0:00:09]} 100. Qc8 {[%emt 0:00:17]} Qd7 {[%emt 0:00:35]} 101. Qc1 {[%emt 0:00:18]} Qg7 {[%emt 0:02:12]} (101... Qd4 $142 102. Qh6+ Kf7) 102. Qf4+ $16 {[%emt 0:00:24]} ({Don't take} 102. Qc8 Qd7 103. Qb8 Qd4 $18) 102... Ke7 $2 {[%emt 0:00:14]} (102... Ke6 $16 {keeps fighting.} 103. Bf5+ Ke7) 103. Bf5 $18 {[%emt 0:00:14]} Qf6 {[%emt 0:00:23]} 104. Qe4 {[%emt 0:00:09]} Kf8 {[%emt 0:00:59]} 105. Bxg4 {[%emt 0:00:13]} Nf7 $2 {[%emt 0:00:05]} (105... Kg7 106. Be2 Kf8) 106. Qf3 {[%emt 0:00:19]} Kg7 {[%emt 0:00:31]} 107. Qxf6+ {[%emt 0:00:09]} Kxf6 {[%emt 0:00:01]} 108. f4 {[%emt 0:00:07]} Nd6 {[%emt 0:00:08]} 109. Kf3 {[%emt 0:00:17]} Nf7 {[%emt 0:00:02]} 110. Bd7 {[%emt 0:00:27]} 1-0

[Event "FRA-ch Teams Top 16-A 2022"]
[Site "Chartres"]
[Date "2022.06.15"]
[Round "7.20"]
[White "Maurizzi, Marc`Andria"]
[Black "Koch, Jean-Rene"]
[Result "1/2-1/2"]
[ECO "B22"]
[WhiteElo "2490"]
[BlackElo "2441"]
[Annotator "TA"]
[PlyCount "76"]
[EventDate "2022.06.09"]
[EventType "team-tourn"]
[EventCountry "FRA"]
[SourceTitle "playchess.com"]
[Source "ChessBase"]
[SourceQuality "1"]
[TimeControl "40/5400+30:1800+30"]

{[%evp 13,76,9,13,8,9,13,12,29,30,23,20,14,33,25,35,28,45,39,31,0,35,30,83,85,82,71,108,108,113,111,95,20,25,28,29,24,33,6,15,7,7,14,13,0,12,18,15,0,0,0,0,0,0,0,0,0,0,0,0,-8,-8,-8,0,0,0]} 1. e4 {[%emt 0:01:05]} c5 {[%emt 0:00:08]} 2. Nf3 {[%emt 0:00:04]} e6 {[%emt 0:00:16]} 3. c3 {[%emt 0:01:23]} Nf6 {[%emt 0:00:45]} 4. e5 {[%emt 0:00:11]} Nd5 {[%emt 0:00:06]} 5. Bc4 {[%emt 0:01:05]} d6 {[%emt 0:03:03]} 6. d4 {[%emt 0:00:49]} cxd4 {[%emt 0:04:55]} 7. cxd4 {[%emt 0:01:21]} Be7 {[%emt 0:02:03]} 8. O-O {[%emt 0:00:48] B22: Sicilian: 2 c3.} O-O {[%emt 0:01:51]} 9. Qe2 {[%emt 0:01:38]} Bd7 {[%emt 0:04:22]} 10. Nc3 {[%emt 0:16:07]} Nxc3 {[%emt 0:09:55]} 11. bxc3 {[%emt 0:00:02]} Bc6 {[%emt 0:00:37]} 12. exd6 {[%emt 0:08:51]} Qxd6 {[%emt 0:08:34] [#]} 13. a4 $146 {[%emt 0:05:01]} ({Predecessor:} 13. Ne5) 13... Qc7 {[%emt 0:23:01]} 14. Ne5 {[%emt 0:02:49]} Bd5 {[%emt 0:07:26]} 15. Bxd5 {[%emt 0:07:19]} exd5 {[%emt 0:00:06]} 16. Qg4 {[%emt 0:11:15]} Qc8 {[%emt 0:09:16]} 17. Qg3 {[%emt 0:06:08]} Nc6 {[%emt 0:04:37] [#]} (17... Qe6 $11) 18. Bh6 $1 $16 {[%emt 0:00:32][%csl Gh6][%cal Rg3g7]} Bf6 {[%emt 0:00:47]} 19. Ng4 {[%emt 0:00:26] White is much more active. The black rooks are badly placed.} Qf5 {[%emt 0:01:03]} 20. Rab1 {[%emt 0:00:20]} b6 {[%emt 0:10:31] [#]} 21. Rb5 $1 {[%emt 0:33:46][%cal Ob5d5]} Ne7 {[%emt 0:03:12]} 22. Nxf6+ {[%emt 0:00:00]} (22. Bd2 $16 {aiming for Nh6+.} Ng6 23. Qh3 (23. Nxf6+ Qxf6 24. Rxd5 Qe6 $14)) 22... Qxf6 $11 {[%emt 0:00:02]} 23. Bg5 {[%emt 0:00:00]} Qe6 {[%emt 0:00:21]} 24. Bxe7 {[%emt 0:00:00]} Qxe7 {[%emt 0:00:04]} 25. Rxd5 {[%emt 0:00:00]} Rac8 {[%emt 0:00:14] The position is equal.} 26. a5 {[%emt 0:00:00]} Qa3 {[%emt 0:00:39][%csl LRa5,LRc3]} 27. axb6 {[%emt 0:00:00] Strongly threatening b7.} (27. c4 {with more complications.} Qxg3 28. hxg3 Rxc4 29. axb6 axb6 30. Rb1) 27... axb6 {[%emt 0:00:13]} 28. Qd6 {[%emt 0:00:00]} Qxd6 {[%emt 0:00:39]} 29. Rxd6 {[%emt 0:00:00]} Rxc3 {[%emt 0:00:06]} 30. Rxb6 {[%emt 0:00:00][%mdl 4096] Endgame KRR-KRR} Rd3 {[%emt 0:01:13]} 31. Rd6 {[%emt 0:00:00]} Re8 {[%emt 0:00:31] Inhibits Re1.} 32. g3 {[%emt 0:00:00]} g6 {[%emt 0:00:05]} 33. Rc1 {[%emt 0:00:00]} Kg7 {[%emt 0:02:18]} 34. Kf1 {[%emt 0:00:00]} Re4 {[%emt 0:00:24]} 35. d5 {[%emt 0:00:00]} Re5 {[%emt 0:00:49]} 36. Rc5 {[%emt 0:00:00]} Rd2 {[%emt 0:00:19]} 37. Rc4 {[%emt 0:00:00]} Rexd5 {[%emt 0:01:31]} 38. Rxd5 {[%emt 0:00:00]} Rxd5 {[%emt 0:00:06] Weighted Error Value: White=0.08 (flawless) /Black=0.06 (flawless)} 1/2-1/2

[Event "FRA-ch Teams Top 16-A 2022"]
[Site "Chartres"]
[Date "2022.06.15"]
[Round "7.21"]
[White "Lazarev, Vladimir"]
[Black "Guliyev, Namig"]
[Result "1/2-1/2"]
[ECO "D27"]
[WhiteElo "2491"]
[BlackElo "2547"]
[Annotator "TA"]
[PlyCount "45"]
[EventDate "2022.06.09"]
[EventType "team-tourn"]
[EventCountry "FRA"]
[SourceTitle "playchess.com"]
[Source "ChessBase"]
[SourceQuality "1"]
[TimeControl "40/5400+30:1800+30"]

{[%evp 24,26,19,14,14]} 1. d4 {[%emt 0:00:11]} d5 {[%emt 0:00:11]} 2. c4 {[%emt 0:00:41]} dxc4 {[%emt 0:00:09]} 3. Nf3 {[%emt 0:00:40]} Nf6 {[%emt 0:01:37]} 4. e3 {[%emt 0:00:54]} e6 {[%emt 0:00:10]} 5. Bxc4 {[%emt 0:00:52]} a6 {[%emt 0:00:08]} 6. O-O {[%emt 0:02:55]} c5 {[%emt 0:00:20]} 7. dxc5 {[%emt 0:01:24]} Qxd1 {[%emt 0:00:18]} 8. Rxd1 {[%emt 0:00:08]} Bxc5 {[%emt 0:00:08]} 9. b3 {[%emt 0:05:50]} b6 {[%emt 0:00:09]} 10. Bb2 {[%emt 0:00:19]} Nbd7 {[%emt 0:00:11]} 11. Nbd2 {[%emt 0:01:20]} Bb7 {[%emt 0:00:08]} 12. Be2 {[%emt 0:00:35]} O-O {[%emt 0:01:36]} 13. Nc4 {[%emt 0:11:55]} Rfd8 {[%emt 0:00:34] [#] A rather calm draw. D27: Queen's Gambit Accepted: Classical main line: 7 e4!? and 7 a4.} {Predecessor:} 14. Rac1 $146 Kf8 15. Ne1 Be7 16. f3 Rac8 17. e4 b5 18. Na5 Ba8 19. Nd3 Nc5 20. Ba3 Nxd3 21. Rxc8 Rxc8 22. Bxe7+ Kxe7 23. Bxd3 {0-1 (62) Le,Q (2709)-Carlsen,M (2865) chess24.com INT 2022} 1/2-1/2

[Event "FRA-ch Teams Top 16-A 2022"]
[Site "Chartres"]
[Date "2022.06.15"]
[Round "7.22"]
[White "Medvegy, Zoltan"]
[Black "Pucher, Olivier"]
[Result "1-0"]
[ECO "D31"]
[WhiteElo "2522"]
[BlackElo "2341"]
[Annotator "TA"]
[PlyCount "81"]
[EventDate "2022.06.09"]
[EventType "team-tourn"]
[EventCountry "FRA"]
[SourceTitle "playchess.com"]
[Source "ChessBase"]
[SourceQuality "1"]
[TimeControl "40/5400+30:1800+30"]

{[%evp 9,81,24,25,29,22,15,19,18,22,18,30,8,15,22,17,7,59,36,74,68,66,49,64,31,34,27,69,28,88,0,82,66,70,64,66,64,72,71,66,57,55,49,141,146,133,128,241,92,146,131,156,79,110,83,78,68,91,0,16,17,108,75,111,98,177,158,226,54,184,61,1910,1939,29994,29995]} 1. d4 {[%emt 0:00:03]} d5 {[%emt 0:00:46]} 2. c4 {[%emt 0:00:08]} e6 {[%emt 0:00:18]} 3. Nc3 {[%emt 0:00:11]} a6 {[%emt 0:02:12]} 4. cxd5 {[%emt 0:00:23]} exd5 {[%emt 0:00:08]} 5. Bf4 {[%emt 0:00:18]} Nf6 {[%emt 0:00:53]} 6. e3 {[%emt 0:00:26] D31: Queen's Gambit Declined: Semi-Slav without ...Nf6 (+ Marshall Gambit and Noteboom) and Exchange Variation lines without ...Nf6.} Bd6 {[%emt 0:02:13]} 7. Bg5 {[%emt 0:00:53]} c6 {[%emt 0:14:21]} 8. Bd3 {[%emt 0:00:25] The position is equal.} Nbd7 {[%emt 0:02:54] Nowadays more popular than 8...0-0.} 9. Nge2 {[%emt 0:05:43]} Nf8 {[%emt 0:04:04]} 10. Bh4 {[%emt 0:12:30]} Ng6 {[%emt 0:04:22]} 11. Bg3 {[%emt 0:00:08] [#]} Bxg3 $146 {[%emt 0:04:15]} ({Predecessor:} 11... O-O 12. O-O Re8 13. Qd2 Bf8 14. f3 c5 15. Bxg6 hxg6 16. Bh4 b5 17. dxc5 Bxc5 {½-½ (33) Matsenko,S (2533)-Javakhadze,Z (2438) Irving 2018}) 12. hxg3 {[%emt 0:00:38]} Ne7 {[%emt 0:02:39]} (12... a5 $11) 13. Nf4 {[%emt 0:10:10]} g6 {[%emt 0:18:06]} 14. f3 {[%emt 0:02:47] White is more active.} Bf5 {[%emt 0:13:57]} 15. g4 {[%emt 0:01:45]} Bxd3 {[%emt 0:00:18]} 16. Qxd3 {[%emt 0:00:10]} Qd6 {[%emt 0:04:04]} 17. O-O-O {[%emt 0:02:28]} O-O-O {[%emt 0:05:40]} 18. Rh6 {[%emt 0:10:53]} Rhe8 {[%emt 0:02:48]} (18... Nh5 $11) 19. Rh3 {[%emt 0:19:36]} ({White should try} 19. Na4 $16) 19... g5 {[%emt 0:06:16]} (19... h5 $1 $11 {keeps the balance.}) 20. Nfe2 {[%emt 0:01:05]} Kb8 {[%emt 0:03:48]} 21. Ng3 {[%emt 0:03:26]} h6 {[%emt 0:02:47]} 22. Kb1 {[%emt 0:14:14]} Nd7 {[%emt 0:03:31]} 23. Rdh1 {[%emt 0:04:25]} c5 {[%emt 0:00:41]} 24. Nf5 {[%emt 0:02:30]} Nxf5 {[%emt 0:00:06]} 25. gxf5 {[%emt 0:00:04]} c4 {[%emt 0:00:58]} (25... cxd4 $14 26. Qxd4 (26. Rxh6 Qg3 $14) 26... Qe5) 26. Qd2 $16 {[%emt 0:00:57]} Rh8 {[%emt 0:00:52]} 27. g4 {[%emt 0:00:38]} Rde8 {[%emt 0:00:27]} (27... Nf6 $16 28. Qg2 (28. Rxh6 Rxh6 29. Rxh6 Ne4 $16) 28... Rde8) 28. Nd1 {[%emt 0:01:29]} (28. e4 $1 $18 {is the precise move to win.}) 28... Ka8 {[%emt 0:00:31]} (28... Ka7 $142) 29. Qh2 {[%emt 0:00:31]} Qb4 {[%emt 0:00:16]} 30. Rxh6 {[%emt 0:01:16]} (30. a3 $142 $1 {[%cal Ra3b4]} Qb3 31. Qe2) 30... Rxh6 {[%emt 0:00:04]} 31. Qxh6 {[%emt 0:00:05] Black must now prevent Qg7.} c3 {[%emt 0:01:01]} 32. Nxc3 {[%emt 0:04:26]} Rxe3 {[%emt 0:00:08] [#]} 33. Qh8+ {[%emt 0:00:35]} ({Much weaker is} 33. Nxd5 $6 Re1+ 34. Rxe1 Qxe1+ 35. Kc2 Qf2+ 36. Kc1 Qg1+ 37. Kc2 Qg2+ 38. Kc1 Qg1+ 39. Kc2 Qg2+ 40. Kc1 Qg1+ $11) (33. Qxg5 $1 $16 Rxc3 34. Qd8+ Ka7 35. Qxd7) 33... Ka7 {[%emt 0:01:02] Threatens to win with ...Rxc3.} 34. Qc8 {[%emt 0:01:01]} ({Inferior is} 34. Nxd5 Re1+ 35. Rxe1 Qxe1+ 36. Kc2 Qe2+ 37. Kc1 Qe1+ 38. Kc2 Qe2+ 39. Kc1 Qxf3 $17) 34... Nb6 {[%emt 0:00:31]} (34... Nf6 $11) 35. Qc5 {[%emt 0:00:11]} Qxc5 {[%emt 0:00:23]} 36. dxc5 {[%emt 0:00:01] KRN-KRN} Nc4 {[%emt 0:00:36]} (36... Nd7 $16) 37. Nxd5 $18 {[%emt 0:00:29]} Rxf3 {[%emt 0:00:25]} (37... Rd3 $16) 38. Rh6 $2 {[%emt 0:01:56]} (38. b3 $18 Ne5 39. Rh8) 38... Ne5 {[%emt 0:00:37]} (38... Rf2 $14) 39. Nb6 {[%emt 0:00:30]} (39. Rh8 $1 $18 {And now Nb6 would win.} Rf1+ 40. Kc2 Rf2+ 41. Kc3) 39... a5 $2 {[%emt 0:00:31][%mdl 8192] [#]} (39... Nxg4 {is a self mate.} 40. Rh8 Rf1+ 41. Kc2 Rf2+ 42. Kc3 Rf3+ 43. Kb4 a5+ 44. Kxa5) (39... Nd3 $14) 40. Rh8 $1 {[%emt 0:00:34][%csl Gb6][%cal Rh8a8]} Ka6 {[%emt 0:00:04] [#]} 41. a4 $1 {[%emt 0:30:11] Weighted Error Value: White=0.33/Black=0.48} 1-0

[Event "FRA-ch Teams Top 16-A 2022"]
[Site "Chartres"]
[Date "2022.06.15"]
[Round "7.23"]
[White "Migot, Tangi"]
[Black "Daulyte-Cornette, Deimante"]
[Result "1/2-1/2"]
[ECO "B13"]
[WhiteElo "2353"]
[BlackElo "2372"]
[Annotator "TA"]
[PlyCount "108"]
[EventDate "2022.06.09"]
[EventType "team-tourn"]
[EventCountry "FRA"]
[SourceTitle "playchess.com"]
[Source "ChessBase"]
[SourceQuality "1"]
[TimeControl "40/5400+30:1800+30"]

{[%evp 17,108,0,-4,0,29,29,29,17,29,27,24,23,37,25,35,28,34,8,6,14,4,3,20,0,39,34,50,52,47,53,72,61,61,70,77,49,50,22,17,25,12,7,3,0,25,18,19,25,21,31,83,76,85,67,76,71,81,79,73,91,89,83,132,139,129,124,149,131,143,141,151,54,46,54,58,40,46,39,47,30,40,11,11,8,11,4,4,4,8,3,3,3,3]} 1. d4 {[%emt 0:00:04]} d5 {[%emt 0:00:24]} 2. Nf3 {[%emt 0:00:12]} Nf6 {[%emt 0:00:14]} 3. e3 {[%emt 0:00:48]} c5 {[%emt 0:01:11]} 4. Nbd2 {[%emt 0:01:51]} cxd4 {[%emt 0:02:11]} 5. exd4 {[%emt 0:00:07]} Qc7 {[%emt 0:00:18]} 6. c3 {[%emt 0:04:01]} Nc6 {[%emt 0:01:19]} 7. Bd3 {[%emt 0:00:54]} Bg4 {[%emt 0:00:47]} 8. O-O {[%emt 0:01:44]} e6 {[%emt 0:00:58]} 9. Re1 {[%emt 0:02:34]} Bd6 {[%emt 0:00:50][%cal Od6h2] And now ...Bxh2+! would win.} 10. Nf1 {[%emt 0:00:14] B13: Caro-Kann: Exchange Variation and Panov-Botvinnik Attack.} Bh5 {[%emt 0:05:00]} 11. Ng3 {[%emt 0:05:22]} Bg6 {[%emt 0:00:45]} 12. Nf5 {[%emt 0:04:12] White has an edge.} Bxf5 {[%emt 0:11:47]} 13. Bxf5 {[%emt 0:00:57]} O-O {[%emt 0:00:18]} 14. Bd3 {[%emt 0:01:37] [#]} Bf4 $146 {[%emt 0:00:31]} ({Predecessor:} 14... Rac8 15. Qe2 Nd7 16. Bg5 Na5 17. Bh4 Nc4 18. Bxc4 Qxc4 19. Qxc4 Rxc4 20. Bg3 Bxg3 21. hxg3 Rfc8 {½-½ (35) Kartal,E (1351)-Kaplancan,B (1444) Konya 2018}) 15. Ne5 {[%emt 0:09:59]} Bxc1 {[%emt 0:04:21]} 16. Rxc1 {[%emt 0:00:27]} Nxe5 {[%emt 0:04:41]} 17. dxe5 {[%emt 0:04:55]} Nd7 {[%emt 0:00:11]} 18. Qh5 {[%emt 0:02:39][%csl Gd3][%cal Rh5h7] [#]} g6 {[%emt 0:04:27]} 19. Qg5 {[%emt 0:02:51]} Nc5 {[%emt 0:13:17]} 20. Bb1 {[%emt 0:08:00]} b5 {[%emt 0:00:17]} 21. h4 {[%emt 0:01:47][%cal Bh2h4,Bh4h5][%mdl 32]} Rfc8 {[%emt 0:23:16]} 22. h5 {[%emt 0:01:26]} Qd8 {[%emt 0:00:19]} 23. Qg4 {[%emt 0:04:23][%cal Rh5g6]} Qe8 {[%emt 0:05:07]} 24. Re3 {[%emt 0:01:23]} Nd7 {[%emt 0:01:04]} 25. Rh3 {[%emt 0:07:36] Strongly threatening hxg6. 0x0.0022faa309dbdp-1022s more active pieces.} Nxe5 {[%emt 0:06:35]} 26. Qd4 {[%emt 0:12:24]} (26. Qh4 $5 {[%cal Rh5g6]} Qd8 27. hxg6 Qxh4 28. gxf7+ Kxf7 29. Rxh4 $16) 26... Nc6 {[%emt 0:00:29]} 27. Qh4 {[%emt 0:00:16] Black must now prevent hxg6.} (27. Qe3 $5 {[%cal Rh5g6]}) 27... Qe7 {[%emt 0:01:40]} 28. hxg6 {[%emt 0:03:48]} fxg6 {[%emt 0:00:07]} 29. Qg4 {[%emt 0:00:17][%cal Ob1g6]} Ne5 {[%emt 0:03:31]} 30. Qe2 $36 {[%emt 0:01:24][%mdl 2048] White has good play.} Nd7 {[%emt 0:04:15]} 31. Rd1 {[%emt 0:02:23]} Re8 {[%emt 0:02:01]} 32. Qxb5 {[%emt 0:01:10]} Rab8 {[%emt 0:00:15]} 33. Qe2 {[%emt 0:00:08]} Nf8 {[%emt 0:00:48]} (33... Nf6 $14) 34. Re3 $16 {[%emt 0:05:23] aiming for Rxd5.} Red8 {[%emt 0:00:16]} 35. Red3 {[%emt 0:01:52]} Qf6 {[%emt 0:00:42]} 36. a3 {[%emt 0:01:23]} Rdc8 {[%emt 0:00:54]} 37. Rf3 {[%emt 0:01:09]} Qg7 {[%emt 0:00:15]} 38. Ba2 {[%emt 0:01:58][%cal Od1d5] Threatens to win with Rxd5!} Kh8 {[%emt 0:00:13]} 39. Rc1 {[%emt 0:03:08]} Re8 {[%emt 0:00:56]} ({Black should play} 39... a5) 40. b4 {[%emt 0:02:03]} Rbc8 {[%emt 0:02:09]} 41. c4 {[%emt 0:03:01]} dxc4 {[%emt 0:05:41]} 42. Rxc4 {[%emt 0:06:13]} Rxc4 {[%emt 0:08:07]} 43. Bxc4 {[%emt 0:00:21]} Qd4 {[%emt 0:03:17] [#]} 44. Qd3 {[%emt 0:03:24]} (44. g3 $1 $16) 44... Qxd3 $1 $14 {[%emt 0:03:11]} 45. Rxd3 {[%emt 0:01:42][%mdl 4096] Endgame KRB-KRN} Rc8 {[%emt 0:01:10]} 46. Ba6 {[%emt 0:01:28]} Rc7 {[%emt 0:01:15]} 47. a4 {[%emt 0:05:20][%cal Ba3a4,Ba4a5][%mdl 32]} Kg7 {[%emt 0:00:41]} 48. a5 {[%emt 0:05:30]} Nd7 {[%emt 0:00:59]} 49. Rd6 {[%emt 0:04:28]} Nb8 {[%emt 0:03:54] The position is equal.} 50. Bf1 {[%emt 0:03:26]} ({Don't blunder} 50. Rxe6 $2 Kf7 51. Re1 (51. Rd6 $2 Ke7 $19) 51... Nxa6 $19) 50... Nc6 {[%emt 0:00:40]} 51. b5 {[%emt 0:00:49]} Nxa5 {[%emt 0:00:09]} 52. Rxe6 {[%emt 0:00:08]} Nb3 {[%emt 0:00:59]} 53. b6 {[%emt 0:00:46]} axb6 {[%emt 0:00:19]} 54. Rxb6 {[%emt 0:00:05]} Nd4 {[%emt 0:00:18] Weighted Error Value: White=0.07 (flawless) /Black=0.08 (flawless)} 1/2-1/2